{"text_format":"1","workbook":"xlsx","n_sheets":1,"sheets":["Blad1"],"not_rendered":{"charts":0,"images":0,"macros":1,"external_links":0,"defined_names":0,"comments":0,"pivot_tables":0},"unopened":[],"bounds":{"document_bytes":16777216,"sheet_cells":100000,"rows_first":2000,"rows_last":500,"rows_between":2000,"halvings":0,"cell_chars":16384,"cell_head_chars":4096},"cells_cut":0,"cells_raw":0,"read":"whole","date_system":"1900"}

{"sheet":"Blad1","index":0,"n_rows":26,"n_cols":2,"rows_kept":26,"cut":false,"hidden":false,"merged":[]}
["Getal","Priemgetal"]
[1,{"$f":"IsPriem(A2)","v":false}]
[2,{"$f":"IsPriem(A3)","v":true}]
[3,true]
[4,false]
[5,true]
[6,false]
[7,true]
[8,false]
[9,false]
[10,false]
[11,true]
[12,false]
[13,true]
[14,false]
[15,false]
[16,false]
[17,true]
[18,false]
[19,true]
[20,false]
[21,false]
[22,false]
[23,true]
[24,false]
[25,false]